[Event "Titled Tuesday Blitz September 27 Early 2022"]
[White "Domingo Nunez, Ruben"]
[Black "Vagman, Roy"]
[WhiteFideId "22245570"]
[BlackFideId "2828995"]
[WhiteElo "2406"]
[BlackElo "1945"]
[Result "1-0"]
[Round "07"]
[TimeControl "180+1"]
[Date "2022.09.27"]
[WhiteClock "0:00:12"]
[BlackClock "0:00:03"]

1. Nf3 {[%clk 0:03:00]}  Nf6 {[%clk 0:02:58]} 2. g3 {[%clk 0:03:00]}  d5 {[%clk 0:02:52]} 3. Bg2 {[%clk 0:02:59]}  g6 {[%clk 0:02:47]} 4. O-O {[%clk 0:02:59]}  Bg7 {[%clk 0:02:43]} 5. d3 {[%clk 0:03:00]}  Nc6 {[%clk 0:02:43]} 6. Nfd2 {[%clk 0:02:59]}  O-O {[%clk 0:02:38]} 7. e4 {[%clk 0:03:00]}  e5 {[%clk 0:02:33]} 8. Nc3 {[%clk 0:02:59]}  d4 {[%clk 0:02:31]} 9. Ne2 {[%clk 0:03:00]}  Qe7 {[%clk 0:02:23]} 10. a4 {[%clk 0:02:57]}  a5 {[%clk 0:02:19]} 11. h3 {[%clk 0:02:57]}  Rd8 {[%clk 0:02:19]} 12. f4 {[%clk 0:02:54]}  exf4 {[%clk 0:02:15]} 13. gxf4 {[%clk 0:02:55]}  Nh5 {[%clk 0:02:13]} 14. Nf3 {[%clk 0:02:54]}  f5 {[%clk 0:02:12]} 15. e5 {[%clk 0:02:53]}  Be6 {[%clk 0:02:12]} 16. c4 {[%clk 0:02:37]}  dxc3 {[%clk 0:01:57]} 17. bxc3 {[%clk 0:02:38]}  Bc4 {[%clk 0:01:49]} 18. Nfd4 {[%clk 0:02:31]}  Ba6 {[%clk 0:01:37]} 19. Be3 {[%clk 0:02:04]}  Nxd4 {[%clk 0:01:32]} 20. Nxd4 {[%clk 0:02:05]}  c6 {[%clk 0:01:21]} 21. Ra2 {[%clk 0:01:31]}  Rd7 {[%clk 0:01:19]} 22. Rd2 {[%clk 0:01:31]}  Rad8 {[%clk 0:01:16]} 23. Kh2 {[%clk 0:01:29]}  Qh4 {[%clk 0:01:13]} 24. Qe1 {[%clk 0:01:18]}  Qxe1 {[%clk 0:01:10]} 25. Rxe1 {[%clk 0:01:19]}  c5 {[%clk 0:01:08]} 26. Ne6 {[%clk 0:01:19]}  Bxd3 {[%clk 0:00:45]} 27. Nxc5 {[%clk 0:00:56]}  Rc7 {[%clk 0:00:20]} 28. Ne6 {[%clk 0:00:32]}  Rcd7 {[%clk 0:00:18]} 29. Nxd8 {[%clk 0:00:33]}  Rxd8 {[%clk 0:00:15]} 30. Bf1 {[%clk 0:00:32]}  Rc8 {[%clk 0:00:09]} 31. Rxd3 {[%clk 0:00:28]}  Bh6 {[%clk 0:00:10]} 32. Rd4 {[%clk 0:00:26]}  Rxc3 {[%clk 0:00:09]} 33. Bc4+ {[%clk 0:00:27]}  Kf8 {[%clk 0:00:08]} 34. e6 {[%clk 0:00:23]}  Ke7 {[%clk 0:00:07]} 35. Rd7+ {[%clk 0:00:22]}  Ke8 {[%clk 0:00:07]} 36. Bb5 {[%clk 0:00:22]}  Rxe3 {[%clk 0:00:07]} 37. Rxe3 {[%clk 0:00:16]}  Bxf4+ {[%clk 0:00:07]} 38. Kg2 {[%clk 0:00:17]}  Bxe3 {[%clk 0:00:06]} 39. Rxb7+ {[%clk 0:00:12]}  Kf8 {[%clk 0:00:02]} 40. e7+ {[%clk 0:00:12]}  Kg7 {[%clk 0:00:02]} 41. e8=Q+ {[%clk 0:00:12]}  Kh6 {[%clk 0:00:03]} 42. Qxe3+ {[%clk 0:00:12]}  g5 {[%clk 0:00:03]} 43. Rb6+ {[%clk 0:00:12]}  Kg7 {[%clk 0:00:03]} 44. Qe7+ {[%clk 0:00:12]} 1-0


[Site "https://www.chess.com"]

[Event "Titled Tuesday Blitz September 27 Early 2022"]
[White "Ernst, Sipke"]
[Black "Kosakowski, Jakub"]
[WhiteFideId "1004689"]
[BlackFideId "1185080"]
[WhiteElo "2680"]
[BlackElo "2844"]
[Result "1/2-1/2"]
[Round "07"]
[TimeControl "180+1"]
[Date "2022.09.27"]
[WhiteClock "0:00:38"]
[BlackClock "0:00:13"]

1. d4 {[%clk 0:03:00]}  d5 {[%clk 0:02:57]} 2. c4 {[%clk 0:03:01]}  e5 {[%clk 0:02:57]} 3. e3 {[%clk 0:03:00]}  exd4 {[%clk 0:02:53]} 4. exd4 {[%clk 0:02:59]}  Nf6 {[%clk 0:02:54]} 5. Nc3 {[%clk 0:02:59]}  Bb4 {[%clk 0:02:54]} 6. Nf3 {[%clk 0:02:59]}  O-O {[%clk 0:02:53]} 7. Bd3 {[%clk 0:02:58]}  Re8+ {[%clk 0:02:48]} 8. Be3 {[%clk 0:02:58]}  Bg4 {[%clk 0:02:49]} 9. O-O {[%clk 0:02:56]}  Nc6 {[%clk 0:02:49]} 10. a3 {[%clk 0:02:42]}  dxc4 {[%clk 0:02:42]} 11. Bxc4 {[%clk 0:02:37]}  Bd6 {[%clk 0:02:42]} 12. h3 {[%clk 0:02:36]}  Bh5 {[%clk 0:02:41]} 13. b4 {[%clk 0:02:17]}  Qd7 {[%clk 0:02:38]} 14. Be2 {[%clk 0:02:10]}  Rad8 {[%clk 0:02:36]} 15. d5 {[%clk 0:02:05]}  Ne5 {[%clk 0:02:14]} 16. Ra2 {[%clk 0:02:05]}  Nxf3+ {[%clk 0:02:04]} 17. Bxf3 {[%clk 0:02:04]}  Bxf3 {[%clk 0:02:05]} 18. Qxf3 {[%clk 0:02:05]}  Be5 {[%clk 0:02:06]} 19. Bg5 {[%clk 0:01:31]}  Bxc3 {[%clk 0:01:55]} 20. Qxc3 {[%clk 0:01:32]}  Ne4 {[%clk 0:01:46]} 21. Qc1 {[%clk 0:01:10]}  Nxg5 {[%clk 0:01:21]} 22. Qxg5 {[%clk 0:01:11]}  Qxd5 {[%clk 0:01:22]} 23. Qxd5 {[%clk 0:01:11]}  Rxd5 {[%clk 0:01:23]} 24. Rc1 {[%clk 0:01:10]}  c6 {[%clk 0:01:22]} 25. a4 {[%clk 0:01:10]}  h5 {[%clk 0:01:20]} 26. b5 {[%clk 0:01:07]}  cxb5 {[%clk 0:01:15]} 27. axb5 {[%clk 0:01:08]}  Rxb5 {[%clk 0:01:15]} 28. Rxa7 {[%clk 0:01:07]}  Rb2 {[%clk 0:01:16]} 29. Ra4 {[%clk 0:01:00]}  b5 {[%clk 0:01:13]} 30. Rf4 {[%clk 0:01:00]}  Re7 {[%clk 0:01:04]} 31. Rc5 {[%clk 0:00:49]}  g6 {[%clk 0:01:01]} 32. g4 {[%clk 0:00:49]}  hxg4 {[%clk 0:00:43]} 33. hxg4 {[%clk 0:00:50]}  Rb7 {[%clk 0:00:33]} 34. g5 {[%clk 0:00:48]}  Rd2 {[%clk 0:00:22]} 35. Rc8+ {[%clk 0:00:43]}  Kg7 {[%clk 0:00:22]} 36. Rh4 {[%clk 0:00:43]}  Rd5 {[%clk 0:00:22]} 37. f4 {[%clk 0:00:43]}  Re7 {[%clk 0:00:18]} 38. Rch8 {[%clk 0:00:41]}  Rd1+ {[%clk 0:00:12]} 39. Kf2 {[%clk 0:00:41]}  Rd2+ {[%clk 0:00:12]} 40. Kf3 {[%clk 0:00:41]}  Rd3+ {[%clk 0:00:13]} 41. Kf2 {[%clk 0:00:40]}  Rd2+ {[%clk 0:00:12]} 42. Kf3 {[%clk 0:00:40]}  Rd3+ {[%clk 0:00:13]} 43. Kf2 {[%clk 0:00:38]}  Rd2+ {[%clk 0:00:13]} 1/2-1/2


[Site "https://www.chess.com"]

[Event "Titled Tuesday Blitz September 27 Early 2022"]
[White "Flis, Pawel"]
[Black "Begunov, Konstantin"]
[WhiteFideId "1112864"]
[BlackFideId "4118510"]
[WhiteElo "1735"]
[BlackElo "2165"]
[Result "0-1"]
[Round "07"]
[TimeControl "180+1"]
[Date "2022.09.27"]
[WhiteClock "0:00:31"]
[BlackClock "0:00:12"]

1. Nf3 {[%clk 0:03:00]}  d5 {[%clk 0:02:57]} 2. g3 {[%clk 0:03:00]}  c6 {[%clk 0:02:57]} 3. Bg2 {[%clk 0:03:01]}  Bg4 {[%clk 0:02:58]} 4. O-O {[%clk 0:03:01]}  Nd7 {[%clk 0:02:58]} 5. h3 {[%clk 0:03:00]}  Bh5 {[%clk 0:02:58]} 6. d3 {[%clk 0:03:00]}  e5 {[%clk 0:02:58]} 7. c4 {[%clk 0:02:49]}  Ngf6 {[%clk 0:02:57]} 8. Qb3 {[%clk 0:02:44]}  Qb6 {[%clk 0:02:34]} 9. Bg5 {[%clk 0:02:40]}  Qxb3 {[%clk 0:02:14]} 10. axb3 {[%clk 0:02:39]}  e4 {[%clk 0:02:01]} 11. Nd4 {[%clk 0:02:37]}  Bc5 {[%clk 0:01:54]} 12. Nf5 {[%clk 0:02:34]}  Bxe2 {[%clk 0:01:47]} 13. Re1 {[%clk 0:02:28]}  Bxd3 {[%clk 0:01:44]} 14. Nxg7+ {[%clk 0:02:27]}  Kf8 {[%clk 0:01:44]} 15. Bh6 {[%clk 0:02:27]}  Ke7 {[%clk 0:01:27]} 16. cxd5 {[%clk 0:02:24]}  cxd5 {[%clk 0:01:25]} 17. Nc3 {[%clk 0:02:23]}  Rhc8 {[%clk 0:00:54]} 18. Nf5+ {[%clk 0:02:20]}  Ke6 {[%clk 0:00:46]} 19. Ng7+ {[%clk 0:02:18]}  Ke7 {[%clk 0:00:39]} 20. Bg5 {[%clk 0:02:07]}  Kd6 {[%clk 0:00:19]} 21. Bf4+ {[%clk 0:02:03]}  Kc6 {[%clk 0:00:17]} 22. Na4 {[%clk 0:01:50]}  a5 {[%clk 0:00:16]} 23. Rac1 {[%clk 0:01:48]}  b6 {[%clk 0:00:16]} 24. Be3 {[%clk 0:01:42]}  Kb5 {[%clk 0:00:15]} 25. Nc3+ {[%clk 0:01:37]}  Ka6 {[%clk 0:00:15]} 26. Bxc5 {[%clk 0:01:36]}  bxc5 {[%clk 0:00:15]} 27. Bf1 {[%clk 0:01:30]}  Bxf1 {[%clk 0:00:14]} 28. Kxf1 {[%clk 0:01:31]}  Rc6 {[%clk 0:00:12]} 29. Nf5 {[%clk 0:01:27]}  Nb6 {[%clk 0:00:11]} 30. Na4 {[%clk 0:01:24]}  Rac8 {[%clk 0:00:09]} 31. Ne7 {[%clk 0:01:20]}  R8c7 {[%clk 0:00:09]} 32. Nxc6 {[%clk 0:01:18]}  Rxc6 {[%clk 0:00:10]} 33. Nxc5+ {[%clk 0:01:15]}  Kb5 {[%clk 0:00:09]} 34. Na4 {[%clk 0:01:12]}  Rxc1 {[%clk 0:00:09]} 35. Rxc1 {[%clk 0:01:13]}  Nxa4 {[%clk 0:00:09]} 36. bxa4+ {[%clk 0:01:13]}  Kxa4 {[%clk 0:00:10]} 37. Rc6 {[%clk 0:01:11]}  Nd7 {[%clk 0:00:09]} 38. Rd6 {[%clk 0:01:09]}  Nc5 {[%clk 0:00:08]} 39. Rxd5 {[%clk 0:01:08]}  Nd3 {[%clk 0:00:08]} 40. Rd4+ {[%clk 0:01:03]}  Kb3 {[%clk 0:00:08]} 41. Rxe4 {[%clk 0:00:59]}  Nxb2 {[%clk 0:00:08]} 42. Re7 {[%clk 0:00:55]}  a4 {[%clk 0:00:09]} 43. Rxf7 {[%clk 0:00:52]}  a3 {[%clk 0:00:09]} 44. Rb7+ {[%clk 0:00:51]}  Kc3 {[%clk 0:00:08]} 45. Ra7 {[%clk 0:00:50]}  Kb3 {[%clk 0:00:08]} 46. f4 {[%clk 0:00:48]}  a2 {[%clk 0:00:09]} 47. g4 {[%clk 0:00:48]}  Na4 {[%clk 0:00:08]} 48. Rb7+ {[%clk 0:00:47]}  Ka3 {[%clk 0:00:08]} 49. Re7 {[%clk 0:00:44]}  a1=Q+ {[%clk 0:00:09]} 50. Re1 {[%clk 0:00:45]}  Qd4 {[%clk 0:00:08]} 51. Kg2 {[%clk 0:00:42]}  Nc3 {[%clk 0:00:07]} 52. f5 {[%clk 0:00:36]}  Qd2+ {[%clk 0:00:07]} 53. Kf1 {[%clk 0:00:35]}  Qf4+ {[%clk 0:00:08]} 54. Kg1 {[%clk 0:00:33]}  Ne4 {[%clk 0:00:07]} 55. Ra1+ {[%clk 0:00:32]}  Kb2 {[%clk 0:00:07]} 56. Rf1 {[%clk 0:00:30]}  Qg3+ {[%clk 0:00:08]} 57. Kh1 {[%clk 0:00:30]}  Qxh3+ {[%clk 0:00:08]} 58. Kg1 {[%clk 0:00:30]}  Qg3+ {[%clk 0:00:09]} 59. Kh1 {[%clk 0:00:30]}  Nf2+ {[%clk 0:00:09]} 60. Rxf2+ {[%clk 0:00:29]}  Qxf2 {[%clk 0:00:09]} 61. g5 {[%clk 0:00:29]}  Qxf5 {[%clk 0:00:09]} 62. g6 {[%clk 0:00:30]}  Qxg6 {[%clk 0:00:09]} 63. Kh2 {[%clk 0:00:30]}  Kc2 {[%clk 0:00:10]} 64. Kh3 {[%clk 0:00:30]}  Kd2 {[%clk 0:00:11]} 65. Kh4 {[%clk 0:00:30]}  Ke2 {[%clk 0:00:12]} 66. Kh3 {[%clk 0:00:31]}  Kf3 {[%clk 0:00:12]} 67. Kh4 {[%clk 0:00:31]}  Qg4# {[%clk 0:00:12]} 0-1


[Site "https://www.chess.com"]

[Event "Titled Tuesday Blitz September 27 Early 2022"]
[White "Forgacs, Attila Jr."]
[Black "Ardila, Oscar Humberto"]
[WhiteFideId "773654"]
[BlackFideId "4404742"]
[WhiteElo "2062"]
[BlackElo "1898"]
[Result "1-0"]
[Round "07"]
[TimeControl "180+1"]
[Date "2022.09.27"]
[WhiteClock "0:00:13"]
[BlackClock "0:00:01"]

1. e4 {[%clk 0:03:00]}  e5 {[%clk 0:02:59]} 2. Nf3 {[%clk 0:03:01]}  Nf6 {[%clk 0:02:59]} 3. Nxe5 {[%clk 0:03:01]}  d6 {[%clk 0:02:59]} 4. Nf3 {[%clk 0:03:01]}  Nxe4 {[%clk 0:02:57]} 5. Bd3 {[%clk 0:03:02]}  Nf6 {[%clk 0:02:56]} 6. c3 {[%clk 0:03:02]}  Be7 {[%clk 0:02:57]} 7. Bc2 {[%clk 0:03:02]}  O-O {[%clk 0:02:58]} 8. O-O {[%clk 0:03:02]}  Nbd7 {[%clk 0:02:58]} 9. d4 {[%clk 0:03:03]}  Re8 {[%clk 0:02:58]} 10. Nbd2 {[%clk 0:03:02]}  Nf8 {[%clk 0:02:58]} 11. Re1 {[%clk 0:03:02]}  Bg4 {[%clk 0:02:57]} 12. h3 {[%clk 0:03:02]}  Bh5 {[%clk 0:02:56]} 13. Nf1 {[%clk 0:03:02]}  Bg6 {[%clk 0:02:56]} 14. Bxg6 {[%clk 0:03:01]}  Nxg6 {[%clk 0:02:55]} 15. Ng3 {[%clk 0:03:02]}  Qd7 {[%clk 0:02:56]} 16. Bd2 {[%clk 0:02:56]}  h6 {[%clk 0:02:55]} 17. Qc2 {[%clk 0:02:55]}  Bf8 {[%clk 0:02:55]} 18. Nf5 {[%clk 0:02:50]}  Rxe1+ {[%clk 0:02:53]} 19. Rxe1 {[%clk 0:02:49]}  Re8 {[%clk 0:02:52]} 20. Rxe8 {[%clk 0:02:40]}  Qxe8 {[%clk 0:02:53]} 21. Kf1 {[%clk 0:02:39]}  Qe6 {[%clk 0:02:51]} 22. b3 {[%clk 0:02:33]}  d5 {[%clk 0:02:46]} 23. Ne3 {[%clk 0:02:27]}  Ne4 {[%clk 0:02:45]} 24. Be1 {[%clk 0:02:20]}  Bd6 {[%clk 0:02:34]} 25. Nd2 {[%clk 0:02:19]}  Nf4 {[%clk 0:02:23]} 26. Nxe4 {[%clk 0:02:11]}  dxe4 {[%clk 0:02:21]} 27. Bd2 {[%clk 0:01:58]}  f5 {[%clk 0:02:08]} 28. Nc4 {[%clk 0:01:48]}  Nd3 {[%clk 0:02:04]} 29. Nxd6 {[%clk 0:01:44]}  cxd6 {[%clk 0:02:03]} 30. c4 {[%clk 0:01:36]}  d5 {[%clk 0:01:59]} 31. cxd5 {[%clk 0:01:29]}  Qxd5 {[%clk 0:01:52]} 32. Qc4 {[%clk 0:01:29]}  Qf7 {[%clk 0:01:52]} 33. d5 {[%clk 0:01:18]}  Kh7 {[%clk 0:01:48]} 34. d6 {[%clk 0:01:15]}  Qxc4 {[%clk 0:01:27]} 35. bxc4 {[%clk 0:01:15]}  Ne5 {[%clk 0:01:26]} 36. Bc3 {[%clk 0:00:47]}  Nd7 {[%clk 0:01:26]} 37. Ke2 {[%clk 0:00:46]}  g5 {[%clk 0:01:24]} 38. Ke3 {[%clk 0:00:45]}  Kg6 {[%clk 0:01:21]} 39. Kd4 {[%clk 0:00:40]}  Kf7 {[%clk 0:01:20]} 40. Kd5 {[%clk 0:00:39]}  a6 {[%clk 0:01:13]} 41. c5 {[%clk 0:00:38]}  f4 {[%clk 0:00:57]} 42. Bd4 {[%clk 0:00:35]}  f3 {[%clk 0:00:49]} 43. gxf3 {[%clk 0:00:32]}  exf3 {[%clk 0:00:45]} 44. Be3 {[%clk 0:00:22]}  Nf6+ {[%clk 0:00:36]} 45. Ke5 {[%clk 0:00:20]}  g4 {[%clk 0:00:33]} 46. hxg4 {[%clk 0:00:19]}  Nxg4+ {[%clk 0:00:33]} 47. Kf4 {[%clk 0:00:20]}  Nf6 {[%clk 0:00:29]} 48. Kxf3 {[%clk 0:00:19]}  h5 {[%clk 0:00:27]} 49. Bd4 {[%clk 0:00:19]}  Nd7 {[%clk 0:00:25]} 50. Kg3 {[%clk 0:00:19]}  Ke6 {[%clk 0:00:24]} 51. Kh4 {[%clk 0:00:19]}  Kd5 {[%clk 0:00:23]} 52. Be3 {[%clk 0:00:19]}  Nf6 {[%clk 0:00:23]} 53. Kg5 {[%clk 0:00:18]}  Ke6 {[%clk 0:00:20]} 54. Bd4 {[%clk 0:00:16]}  Nd5 {[%clk 0:00:09]} 55. Kxh5 {[%clk 0:00:15]}  Nb4 {[%clk 0:00:10]} 56. a4 {[%clk 0:00:14]}  Nc2 {[%clk 0:00:02]} 57. Be3 {[%clk 0:00:13]}  Nb4 {[%clk 0:00:01]} 58. Kg6 {[%clk 0:00:13]} 1-0


[Site "https://www.chess.com"]

[Event "Titled Tuesday Blitz September 27 Early 2022"]
[White "Gorshtein, Ido"]
[Black "Dilanyan, Grigor"]
[WhiteFideId "2815532"]
[BlackFideId "13303570"]
[WhiteElo "2832"]
[BlackElo "2656"]
[Result "1-0"]
[Round "07"]
[TimeControl "180+1"]
[Date "2022.09.27"]
[WhiteClock "0:00:21"]
[BlackClock "0:00:02"]

1. Nf3 {[%clk 0:03:00]}  g6 {[%clk 0:02:57]} 2. g3 {[%clk 0:03:01]}  Bg7 {[%clk 0:02:57]} 3. Bg2 {[%clk 0:03:01]}  e5 {[%clk 0:02:58]} 4. O-O {[%clk 0:03:01]}  d5 {[%clk 0:02:58]} 5. d3 {[%clk 0:03:01]}  Ne7 {[%clk 0:02:58]} 6. Nbd2 {[%clk 0:03:01]}  O-O {[%clk 0:02:58]} 7. e4 {[%clk 0:03:01]}  c6 {[%clk 0:02:58]} 8. Re1 {[%clk 0:02:58]}  d4 {[%clk 0:02:52]} 9. Nc4 {[%clk 0:02:54]}  f6 {[%clk 0:02:49]} 10. c3 {[%clk 0:02:46]}  b5 {[%clk 0:02:48]} 11. Na3 {[%clk 0:02:44]}  dxc3 {[%clk 0:02:39]} 12. bxc3 {[%clk 0:02:44]}  Be6 {[%clk 0:02:38]} 13. d4 {[%clk 0:02:39]}  Nd7 {[%clk 0:02:37]} 14. Nc2 {[%clk 0:02:30]}  f5 {[%clk 0:02:26]} 15. Ng5 {[%clk 0:02:23]}  Bc4 {[%clk 0:02:22]} 16. Ne3 {[%clk 0:02:18]}  Bf7 {[%clk 0:02:01]} 17. Ba3 {[%clk 0:02:09]}  exd4 {[%clk 0:01:57]} 18. cxd4 {[%clk 0:02:02]}  fxe4 {[%clk 0:01:45]} 19. Bxe4 {[%clk 0:02:01]}  Rc8 {[%clk 0:01:22]} 20. Nxf7 {[%clk 0:01:53]}  Rxf7 {[%clk 0:01:23]} 21. Rc1 {[%clk 0:01:49]}  Nb6 {[%clk 0:01:13]} 22. Bc5 {[%clk 0:01:48]}  Na4 {[%clk 0:01:11]} 23. Bxe7 {[%clk 0:01:32]}  Rxe7 {[%clk 0:01:09]} 24. Bxc6 {[%clk 0:01:30]}  Kh8 {[%clk 0:00:43]} 25. d5 {[%clk 0:01:18]}  Nc3 {[%clk 0:00:34]} 26. Qb3 {[%clk 0:01:14]}  b4 {[%clk 0:00:24]} 27. a3 {[%clk 0:01:02]}  a5 {[%clk 0:00:24]} 28. axb4 {[%clk 0:01:01]}  axb4 {[%clk 0:00:24]} 29. h4 {[%clk 0:00:45]}  Qb6 {[%clk 0:00:18]} 30. Kg2 {[%clk 0:00:42]}  Rf8 {[%clk 0:00:12]} 31. Rc2 {[%clk 0:00:38]}  Qc5 {[%clk 0:00:05]} 32. h5 {[%clk 0:00:33]}  gxh5 {[%clk 0:00:04]} 33. Rh1 {[%clk 0:00:26]}  Qd6 {[%clk 0:00:04]} 34. Rxh5 {[%clk 0:00:24]}  Qg6 {[%clk 0:00:04]} 35. Rh4 {[%clk 0:00:21]}  Ref7 {[%clk 0:00:02]} 36. Qxb4 {[%clk 0:00:21]} 1-0


[Site "https://www.chess.com"]

[Event "Titled Tuesday Blitz September 27 Early 2022"]
[White "Gracia Alvarez, Gerardo Antonio"]
[Black "Matinian, Nikita"]
[WhiteFideId "5109124"]
[BlackFideId "24129100"]
[WhiteElo "2139"]
[BlackElo "2422"]
[Result "0-1"]
[Round "07"]
[TimeControl "180+1"]
[Date "2022.09.27"]
[WhiteClock "0:00:04"]
[BlackClock "0:00:53"]

1. d4 {[%clk 0:03:00]}  Nf6 {[%clk 0:02:59]} 2. Bf4 {[%clk 0:03:01]}  d5 {[%clk 0:02:59]} 3. Nf3 {[%clk 0:03:00]}  Bf5 {[%clk 0:02:58]} 4. e3 {[%clk 0:02:59]}  e6 {[%clk 0:02:58]} 5. c4 {[%clk 0:02:58]}  Bd6 {[%clk 0:02:56]} 6. Bxd6 {[%clk 0:02:51]}  cxd6 {[%clk 0:02:57]} 7. Nc3 {[%clk 0:02:50]}  dxc4 {[%clk 0:02:57]} 8. Bxc4 {[%clk 0:02:49]}  O-O {[%clk 0:02:56]} 9. O-O {[%clk 0:02:48]}  Nbd7 {[%clk 0:02:57]} 10. Qe2 {[%clk 0:02:43]}  Rc8 {[%clk 0:02:56]} 11. Bb3 {[%clk 0:02:39]}  Bg4 {[%clk 0:02:50]} 12. h3 {[%clk 0:02:38]}  Bxf3 {[%clk 0:02:50]} 13. Qxf3 {[%clk 0:02:38]}  d5 {[%clk 0:02:51]} 14. Rac1 {[%clk 0:02:36]}  Nb6 {[%clk 0:02:46]} 15. Rfd1 {[%clk 0:02:36]}  Qd7 {[%clk 0:02:44]} 16. Qe2 {[%clk 0:02:29]}  Nc4 {[%clk 0:02:44]} 17. e4 {[%clk 0:02:23]}  Na5 {[%clk 0:02:44]} 18. Ba4 {[%clk 0:02:17]}  Qd8 {[%clk 0:02:42]} 19. e5 {[%clk 0:02:16]}  Nd7 {[%clk 0:02:40]} 20. Bc2 {[%clk 0:02:14]}  Nc4 {[%clk 0:02:37]} 21. Bb1 {[%clk 0:02:10]}  Qb6 {[%clk 0:02:34]} 22. b3 {[%clk 0:02:02]}  Na3 {[%clk 0:02:34]} 23. Bd3 {[%clk 0:02:01]}  g6 {[%clk 0:02:32]} 24. h4 {[%clk 0:02:00]}  Qxd4 {[%clk 0:02:29]} 25. Bb5 {[%clk 0:01:43]}  Rxc3 {[%clk 0:02:15]} 26. Rxd4 {[%clk 0:01:42]}  Rxc1+ {[%clk 0:02:15]} 27. Kh2 {[%clk 0:01:41]}  Rc2 {[%clk 0:01:59]} 28. Qf1 {[%clk 0:00:55]}  Nxe5 {[%clk 0:01:48]} 29. Be2 {[%clk 0:00:54]}  Rfc8 {[%clk 0:01:46]} 30. f4 {[%clk 0:00:51]}  Nc6 {[%clk 0:01:44]} 31. Ra4 {[%clk 0:00:50]}  Rxa2 {[%clk 0:01:41]} 32. h5 {[%clk 0:00:44]}  Ne7 {[%clk 0:01:28]} 33. h6 {[%clk 0:00:37]}  Nf5 {[%clk 0:01:28]} 34. Rxa7 {[%clk 0:00:28]}  Nxh6 {[%clk 0:01:27]} 35. Qd1 {[%clk 0:00:19]}  Nf5 {[%clk 0:01:24]} 36. Qd3 {[%clk 0:00:11]}  Rcc2 {[%clk 0:01:23]} 37. Bf3 {[%clk 0:00:10]}  Nh4 {[%clk 0:00:52]} 38. Ra8+ {[%clk 0:00:06]}  Kg7 {[%clk 0:00:53]} 39. Qd4+ {[%clk 0:00:07]}  Kh6 {[%clk 0:00:54]} 40. Kg3 {[%clk 0:00:04]}  Nf5+ {[%clk 0:00:53]} 0-1


[Site "https://www.chess.com"]

[Event "Titled Tuesday Blitz September 27 Early 2022"]
[White "Gu, Xiaobing"]
[Black "Harshad S"]
[WhiteFideId "8602611"]
[BlackFideId "46616551"]
[WhiteElo "2400"]
[BlackElo "2714"]
[Result "1-0"]
[Round "07"]
[TimeControl "180+1"]
[Date "2022.09.27"]
[WhiteClock "0:01:07"]
[BlackClock "0:00:36"]

1. e4 {[%clk 0:02:59]}  c5 {[%clk 0:03:00]} 2. Nf3 {[%clk 0:02:58]}  d6 {[%clk 0:03:00]} 3. d4 {[%clk 0:02:56]}  cxd4 {[%clk 0:03:01]} 4. Nxd4 {[%clk 0:02:56]}  Nf6 {[%clk 0:03:02]} 5. Nc3 {[%clk 0:02:56]}  a6 {[%clk 0:03:01]} 6. h3 {[%clk 0:02:52]}  e5 {[%clk 0:02:59]} 7. Nb3 {[%clk 0:02:52]}  h6 {[%clk 0:02:49]} 8. f4 {[%clk 0:02:41]}  Be7 {[%clk 0:02:41]} 9. Be3 {[%clk 0:02:30]}  b5 {[%clk 0:02:31]} 10. Nd5 {[%clk 0:02:16]}  Nxe4 {[%clk 0:02:00]} 11. Bb6 {[%clk 0:01:57]}  Bh4+ {[%clk 0:01:58]} 12. g3 {[%clk 0:01:54]}  Bxg3+ {[%clk 0:01:53]} 13. Ke2 {[%clk 0:01:54]}  Qh4 {[%clk 0:01:40]} 14. Nc7+ {[%clk 0:01:50]}  Kd7 {[%clk 0:01:29]} 15. Bg2 {[%clk 0:01:48]}  Bb7 {[%clk 0:01:26]} 16. Bxe4 {[%clk 0:01:26]}  Qh5+ {[%clk 0:01:00]} 17. Kf1 {[%clk 0:01:15]}  Qxd1+ {[%clk 0:00:54]} 18. Rxd1 {[%clk 0:01:14]}  Bxe4 {[%clk 0:00:52]} 19. Nc5+ {[%clk 0:01:14]}  Kc6 {[%clk 0:00:48]} 20. Nxe4 {[%clk 0:01:14]}  Bxf4 {[%clk 0:00:36]} 21. Rxd6+ {[%clk 0:01:07]}  Kb7 {[%clk 0:00:36]} 22. Nc5+ {[%clk 0:01:07]}  Kc8 {[%clk 0:00:36]} 23. Nxa8 {[%clk 0:01:07]} 1-0


[Site "https://www.chess.com"]

[Event "Titled Tuesday Blitz September 27 Early 2022"]
[White "Guz, Ari"]
[Black "Gabrielian, Artur"]
[WhiteFideId "2825759"]
[BlackFideId "4131002"]
[WhiteElo "2635"]
[BlackElo "2779"]
[Result "0-1"]
[Round "07"]
[TimeControl "180+1"]
[Date "2022.09.27"]
[WhiteClock "0:01:25"]
[BlackClock "0:02:36"]

1. e4 {[%clk 0:03:00]}  c5 {[%clk 0:02:59]} 2. Nf3 {[%clk 0:01:42]}  d6 {[%clk 0:02:57]} 3. c3 {[%clk 0:01:43]}  Nf6 {[%clk 0:02:56]} 4. Bd3 {[%clk 0:01:43]}  g6 {[%clk 0:02:57]} 5. Bc2 {[%clk 0:01:44]}  Bg7 {[%clk 0:02:57]} 6. h3 {[%clk 0:01:44]}  O-O {[%clk 0:02:57]} 7. O-O {[%clk 0:01:45]}  e5 {[%clk 0:02:58]} 8. d4 {[%clk 0:01:45]}  cxd4 {[%clk 0:02:58]} 9. cxd4 {[%clk 0:01:46]}  exd4 {[%clk 0:02:59]} 10. Nxd4 {[%clk 0:01:47]}  d5 {[%clk 0:02:59]} 11. e5 {[%clk 0:01:46]}  Ne4 {[%clk 0:02:59]} 12. f4 {[%clk 0:01:44]}  f6 {[%clk 0:02:53]} 13. exf6 {[%clk 0:01:31]}  Bxf6 {[%clk 0:02:40]} 14. Bxe4 {[%clk 0:01:29]}  dxe4 {[%clk 0:02:39]} 15. Be3 {[%clk 0:01:28]}  Nc6 {[%clk 0:02:36]} 16. Nc3 {[%clk 0:01:25]}  Bxd4 {[%clk 0:02:36]} 0-1


[Site "https://www.chess.com"]